lending/lending_fUSD_20250318
["ID","MTS","AMOUNT","RATE_DAILY","PERIOD"]
[356368897,1742339546286,-1331.13,0.00038356,12]
[356368898,1742339546295,-1198.43,0.00038356,12]
[356368899,1742339546305,-500.0,0.00038356,12]
[356368900,1742339546314,-500.0,0.00038356,12]
[356368901,1742339546324,-649.81,0.00038356,12]
[356368902,1742339546333,-500.0,0.00038356,12]
[356368903,1742339546343,-999.15,0.00038356,12]
[356368904,1742339546353,-2598.97,0.00038356,12]
[356368905,1742339546363,-500.0,0.00038356,12]
[356368906,1742339546372,-3644.21,0.00038356,12]
[356368907,1742339546382,-500.0,0.00038356,12]
[356368908,1742339546392,-500.0,0.00038356,12]
[356368909,1742339546401,-1387.99,0.00038356,12]
[356368910,1742339546410,-843.24,0.00038356,12]
[356368911,1742339546420,-500.0,0.00038356,12]
[356368912,1742339546430,-2465.62,0.00038356,12]
[356368913,1742339546440,-975.0,0.00038356,12]
[356368914,1742339546450,-609.77,0.00038356,12]
[356368915,1742339546459,-1078.91,0.00038356,12]
[356368916,1742339546469,-974.58,0.00038356,12]
[356368917,1742339546479,-2236.78,0.00038356,12]
[356368918,1742339546488,-1919.16,0.00038356,12]
[356368919,1742339546497,-2066.04,0.00038356,12]
[356368920,1742339546506,-1744.56,0.00038356,12]
[356368921,1742339546516,-924.09,0.00038356,12]
[356368922,1742339546526,-965.89,0.00038356,12]
[356368923,1742339546536,-2170.13,0.00038356,7]
[356368924,1742339546545,-630.53,0.00038356,12]
[356368925,1742339546554,-500.0,0.00038356,12]
[356368926,1742339546564,-500.0,0.00038356,12]
[356368927,1742339546573,-4236.85,0.00038356,12]
[356368928,1742339546583,-701.55,0.00038356,12]
[356368929,1742339546592,-2071.16,0.00038356,12]
[356368930,1742339546601,-2364.63,0.00038356,12]
[356368931,1742339546610,-940.24,0.00038356,12]
[356368932,1742339546619,-1084.3,0.00038356,12]
[356368933,1742339546628,-833.55,0.00038356,12]
[356368934,1742339546637,-1166.33,0.00038356,12]
[356368935,1742339546646,-500.0,0.00038356,12]
[356368936,1742339546656,-1018.16,0.00038356,12]
[356368937,1742339546665,-500.0,0.00038356,12]
[356368938,1742339546674,-3791.02,0.00038356,12]
[356368939,1742339546684,-722.87,0.00038356,12]
[356368940,1742339546693,-591.18,0.00038356,12]
[356368941,1742339546703,-627.35,0.00038356,12]
[356368942,1742339546713,-2218.35,0.00038356,12]
[356368943,1742339546723,-433.99,0.00038356,12]
[356368944,1742339546734,-500.0,0.00038356,12]
[356368945,1742339546744,-2207.71,0.00038356,12]
[356368946,1742339546754,-1038.13,0.00038356,12]
[356368947,1742339546764,-7286.97,0.00038356,2]
[356368948,1742339546774,-500.0,0.00038356,12]
[356368949,1742339546784,-500.0,0.00038356,12]
[356368950,1742339546798,-4093.1,0.00038356,12]
[356368951,1742339546808,-500.0,0.00038356,12]
[356368952,1742339546818,-662.54,0.00038356,12]
[356368953,1742339546830,-617.61,0.00038356,12]
[356368954,1742339546839,-884.25,0.00038356,12]
[356368955,1742339546849,-568.35,0.00038356,12]
[356368956,1742339546858,-2314.16,0.00038356,12]
[356368957,1742339546869,-1249.76,0.00038356,12]
[356368958,1742339546879,-590.8,0.00038356,12]
[356368959,1742339546889,-605.74,0.00038356,12]
[356368960,1742339546898,-4019.27,0.00038356,12]
[356368961,1742339546908,-845.44,0.00038356,12]
[356368962,1742339546917,-500.0,0.00038356,12]
[356368963,1742339546927,-1263.79,0.00038356,12]
[356368964,1742339546936,-500.0,0.00038356,12]
[356368965,1742339546946,-841.11,0.00038356,12]
[356368966,1742339546956,-722.51,0.00038356,12]
[356368967,1742339546966,-582.04,0.00038356,12]
[356368968,1742339546976,-1361.67,0.00038356,12]
[356368969,1742339546986,-713.87,0.00038356,12]
[356368970,1742339546996,-1473.86,0.00038356,12]
[356368971,1742339547005,-500.0,0.00038356,12]
[356368972,1742339547014,-1912.63,0.00038356,12]
[356368973,1742339547024,-500.0,0.00038356,12]
[356368974,1742339547033,-714.31,0.00038356,12]
[356368975,1742339547043,-635.53,0.00038356,12]
[356368976,1742339547052,-1883.04,0.00038356,12]
[356368977,1742339547062,-500.0,0.00038356,12]
[356368978,1742339547072,-5988.8,0.00038356,12]
[356368979,1742339547082,-500.0,0.00038356,12]
[356368980,1742339547091,-2180.97,0.00038356,10]
[356368981,1742339547101,-1955.72,0.00038356,12]
[356368982,1742339547111,-6906.57,0.00038356,12]
[356368983,1742339547121,-2131.38,0.00038356,12]
[356368984,1742339547130,-713.4,0.00038356,12]
[356368985,1742339547140,-1357.37,0.00038356,12]
[356368986,1742339547150,-758.94,0.00038356,12]
[356368987,1742339547160,-500.0,0.00038356,12]
[356368988,1742339547169,-517.02,0.00038356,12]
[356368989,1742339547179,-1496.75,0.00038356,12]
[356368990,1742339547189,-1214.53,0.00038356,12]
[356368991,1742339547199,-500.0,0.00038356,12]
[356368992,1742339547209,-500.0,0.00038356,12]
[356368993,1742339547218,-2414.38,0.00038356,12]
[356368994,1742339547227,-1375.9,0.00038356,12]
[356368995,1742339547236,-500.0,0.00038356,12]
[356368996,1742339547246,-1974.79,0.00038356,12]
[356368997,1742339547255,-925.56,0.00038356,12]
[356368998,1742339547266,-839.12,0.00038356,12]
[356368999,1742339547276,-712.94,0.00038356,12]
[356369000,1742339547286,-767.88,0.00038356,12]
[356369001,1742339547296,-1067.84,0.00038356,12]
[356369002,1742339547305,-1426.33,0.00038356,12]
[356369003,1742339547315,-1432.86,0.00038356,12]
[356369004,1742339547324,-780.68,0.00038356,12]
[356369005,1742339547333,-1216.8,0.00038356,12]
[356369006,1742339547344,-1487.69,0.00038356,12]
[356369007,1742339547354,-500.0,0.00038356,12]
[356369008,1742339547363,-1708.8,0.00038356,12]
[356369009,1742339547372,-500.0,0.00038356,12]
[356369010,1742339547382,-674.04,0.00038356,12]
[356369011,1742339547391,-1017.99,0.00038356,12]
[356369012,1742339547401,-913.22,0.00038356,12]
[356369013,1742339547411,-1929.03,0.00038356,12]
[356369014,1742339547420,-902.37,0.00038356,12]
[356369015,1742339547430,-2290.36,0.00038356,12]
[356369016,1742339547440,-1430.23,0.00038356,12]
[356369017,1742339547450,-500.0,0.00038356,12]
[356369018,1742339547459,-1072.64,0.00038356,12]
[356369019,1742339547468,-1760.11,0.00038356,12]
[356369020,1742339547477,-1638.63,0.00038356,12]
[356369021,1742339547487,-1729.5,0.00038356,12]
[356369022,1742339547496,-794.12,0.00038356,12]
[356369023,1742339547505,-1045.11,0.00038356,12]
[356369024,1742339547515,-682.57,0.00038356,12]
[356369025,1742339547524,-500.0,0.00038356,12]
[356369026,1742339547534,-500.0,0.00038356,12]
[356369027,1742339547545,-1395.45,0.00038356,12]
[356369028,1742339547555,-1231.14,0.00038356,12]
[356369029,1742339547565,-1432.26,0.00038356,12]
[356369030,1742339547574,-1130.18,0.00038356,12]
[356369031,1742339547584,-500.0,0.00038356,12]
[356369032,1742339547593,-1071.53,0.00038356,12]
[356369033,1742339547602,-500.0,0.00038356,12]
[356369034,1742339547612,-10881.54,0.00038356,12]
[356369035,1742339547622,-940.53,0.00038356,12]
[356369036,1742339547631,-931.98,0.00038356,12]
[356369037,1742339547642,-643.93,0.00038356,12]
[356369038,1742339547651,-736.61,0.00038356,12]
[356369039,1742339547660,-1889.22,0.00038356,12]
[356369040,1742339547670,-500.0,0.00038356,12]
[356369041,1742339547680,-1912.43,0.00038356,12]
[356369042,1742339547690,-1500.0,0.00038356,12]
[356369043,1742339547700,-500.0,0.00038356,12]
[356369044,1742339547709,-867.89,0.00038356,12]
[356369045,1742339547719,-655.9,0.00038356,12]
[356369046,1742339547729,-3492.09,0.00038356,12]
[356369047,1742339547738,-8347.58,0.00038356,12]
[356369048,1742339547748,-982.97,0.00038356,12]
[356369049,1742339547758,-793.27,0.00038356,12]
[356369050,1742339547768,-500.0,0.00038356,12]
[356369051,1742339547777,-2617.2,0.00038356,12]
[356369052,1742339547788,-500.0,0.00038356,12]
[356369053,1742339547800,-674.83,0.00038356,12]
[356369054,1742339547810,-2613.79,0.00038356,12]
[356369055,1742339547819,-1198.65,0.00038356,12]
[356369056,1742339547830,-500.0,0.00038356,12]
[356369057,1742339547840,-1104.92,0.00038356,12]
[356369058,1742339547850,-500.0,0.00038356,12]
[356369059,1742339547859,-1000.0,0.00038356,12]
[356369060,1742339547871,-1351.56,0.00038356,12]
[356369061,1742339547881,-500.0,0.00038356,12]
[356369062,1742339547891,-573.24,0.00038356,12]
[356369063,1742339547901,-1155.96,0.00038356,12]
[356369064,1742339547910,-592.77,0.00038356,12]
[356369065,1742339547920,-819.5,0.00038356,12]
[356369066,1742339547931,-678.37,0.00038356,12]
[356369067,1742339547941,-1747.47,0.00038356,12]
[356369068,1742339547951,-881.57,0.00038356,12]
[356369069,1742339547962,-733.05,0.00038356,12]
[356369070,1742339547972,-566.73,0.00038356,12]
[356369071,1742339547982,-779.59,0.00038356,12]
[356369072,1742339547991,-700.61,0.00038356,12]
[356369073,1742339548001,-500.0,0.00038356,12]
[356369074,1742339548011,-6201.97,0.00038356,12]
[356369075,1742339548020,-2724.32,0.00038356,12]
[356369076,1742339548030,-673.71,0.00038356,12]
[356369077,1742339548040,-500.0,0.00038356,6]
[356369078,1742339548049,-634.03,0.00038356,12]
[356369079,1742339548059,-1388.66,0.00038356,12]
[356369080,1742339548071,-1201.66,0.00038356,12]
[356369081,1742339548081,-789.17,0.00038356,12]
[356369082,1742339548091,-500.0,0.00038356,12]
[356369083,1742339548100,-500.0,0.00038356,12]
[356369084,1742339548111,-765.41,0.00038356,12]
[356369085,1742339548120,-637.48,0.00038356,12]
[356369086,1742339548130,-1408.89,0.00038356,12]
[356369087,1742339548139,-500.0,0.00038356,12]
[356369088,1742339548149,-1079.25,0.00038356,12]
[356369089,1742339548158,-500.0,0.00038356,12]
[356369090,1742339548167,-629.47,0.00038356,12]
[356369091,1742339548177,-500.0,0.00038356,12]
[356369092,1742339548186,-500.0,0.00038356,12]
[356369093,1742339548195,-500.0,0.00038356,12]
[356369094,1742339548204,-2483.39,0.00038356,12]
[356369095,1742339548214,-500.0,0.00038356,12]
[356369096,1742339548223,-818.98,0.00038356,12]
[356369097,1742339548233,-8678.86,0.00038356,12]
[356369098,1742339548242,-500.0,0.00038356,12]
[356369099,1742339548253,-514.39735348,0.00038356,12]
[356369100,1742339548263,-500.0,0.00038356,12]
[356369101,1742339548273,-852.66,0.00038356,12]
[356369102,1742339548282,-500.0,0.00038356,12]
[356369103,1742339548292,-1387.5,0.00038356,12]
[356369104,1742339548302,-609.81,0.00038356,12]
[356369105,1742339548311,-500.0,0.00038356,12]
[356369106,1742339548321,-1940.56,0.00038356,12]
[356369107,1742339548330,-5124.49,0.00038356,12]
[356369108,1742339548340,-500.0,0.00038356,12]
[356369109,1742339548349,-982.22,0.00038356,12]
[356369110,1742339548358,-848.28,0.00038356,12]
[356369111,1742339548368,-555.67,0.00038356,12]
[356369112,1742339548378,-500.0,0.00038356,12]
[356369113,1742339548387,-610.21,0.00038356,12]
[356369114,1742339548397,-797.64,0.00038356,12]
[356369115,1742339548407,-500.0,0.00038356,12]
[356369116,1742339548416,-1404.74,0.00038356,12]
[356369117,1742339548426,-508.73023604,0.00038356,12]
[356369118,1742339548436,-570.46,0.00038356,12]
[356369119,1742339548445,-626.53,0.00038356,12]
[356369120,1742339548456,-1037.27,0.00038356,12]
[356369121,1742339548465,-500.0,0.00038356,12]
[356369122,1742339548475,-2051.57,0.00038356,12]
[356369123,1742339548484,-1010.64,0.00038356,12]
[356369124,1742339548494,-500.0,0.00038356,12]
[356369125,1742339548503,-517.9,0.00038356,12]
[356369126,1742339548513,-753.9,0.00038356,12]
[356369127,1742339548523,-698.57,0.00038356,12]
[356369128,1742339548533,-976.72,0.00038356,12]
[356369129,1742339548543,-810.35,0.00038356,12]
[356369130,1742339548553,-816.08,0.00038356,12]
[356369131,1742339548562,-1763.99,0.00038356,12]
[356369132,1742339548571,-500.0,0.00038356,12]
[356369133,1742339548581,-807.5,0.00038356,12]
[356369134,1742339548591,-974.77,0.00038356,12]
[356369135,1742339548600,-1119.31,0.00038356,12]
[356369136,1742339548610,-500.0,0.00038356,12]
[356369137,1742339548619,-1305.41,0.00038356,12]
[356369138,1742339548629,-764.52,0.00038356,12]
[356369139,1742339548639,-1054.67,0.00038356,12]
[356369140,1742339548649,-541.37483296,0.00038356,12]
[356369141,1742339548658,-636.48,0.00038356,12]
[356369142,1742339548668,-697.71,0.00038356,12]
[356369143,1742339548677,-784.0,0.00038356,12]
[356369144,1742339548687,-871.68,0.00038356,12]
[356369145,1742339548696,-500.0,0.00038356,12]
[356369146,1742339548706,-1505.16,0.00038356,12]
[356369147,1742339548716,-500.0,0.00038356,12]
[356369148,1742339548725,-500.0,0.00038356,12]
[356369149,1742339548735,-3544.19,0.00038356,12]
[356369150,1742339548745,-500.0,0.00038356,12]
[356369151,1742339548755,-3375.24,0.00038356,12]
[356369152,1742339548765,-1054.74,0.00038356,12]
[356369153,1742339548774,-500.0,0.00038356,12]
[356369154,1742339548785,-1877.16,0.00038356,12]
[356369155,1742339548799,-500.0,0.00038356,12]
[356369156,1742339548809,-1691.18,0.00038356,12]
[356369157,1742339548818,-529.03810046,0.00038356,12]
[356369158,1742339548828,-1037.55,0.00038356,12]
[356369159,1742339548839,-517.11,0.00038356,12]
[356369160,1742339548848,-500.0,0.00038356,30]
[356369161,1742339548858,-1000.0,0.00038356,4]
[356369162,1742339548871,-1331.82,0.00038356,120]
[356369163,1742339548881,-151.031817,0.00038398,120]
[356369164,1742339548890,-1602.44817031,0.000384,33]
[356369165,1742339548899,-713.22,0.00038443,2]
[356369166,1742339548909,-609.99,0.00038443,2]
[356369167,1742339548918,-1657.99266,0.00038488,30]
[356369168,1742339548928,-1000.0,0.00038493,4]
[356369169,1742339548938,-151.031805,0.00038498,120]
[356369170,1742339548947,-500.0,0.0003863,12]
[356369171,1742339548957,-660.95,0.0003863,12]
[356369172,1742339548967,-500.0,0.0003863,12]
[356369173,1742339548976,-1089.18,0.0003863,12]
[356369174,1742339548985,-1280.18,0.0003863,12]
[356369175,1742339548994,-500.0,0.0003863,12]
[356369176,1742339549003,-705.65,0.0003863,12]
[356369177,1742339549012,-500.0,0.0003863,12]
[356369178,1742339549022,-500.0,0.0003863,12]
[356369179,1742339549031,-839.95,0.0003863,12]
[356369180,1742339549041,-500.0,0.0003863,12]
[356369181,1742339549050,-500.0,0.0003863,12]
[356369182,1742339549059,-500.0,0.0003863,12]
[356369183,1742339549069,-586.59,0.0003863,12]
[356369184,1742339549078,-500.0,0.0003863,12]
[356369185,1742339549087,-659.86,0.0003863,12]
[356369186,1742339549096,-500.0,0.0003863,12]
[356369187,1742339549106,-500.0,0.0003863,12]
[356369188,1742339549115,-500.0,0.0003863,12]
[356369189,1742339549124,-781.58,0.0003863,12]
[356369190,1742339549133,-500.0,0.0003863,12]
[356369191,1742339549143,-578.43,0.0003863,12]
[356369192,1742339549152,-716.41,0.0003863,12]
[356369193,1742339549373,-500.0,0.0003863,12]
[356369194,1742339549383,-875.76,0.0003863,12]
[356369195,1742339549393,-500.0,0.0003863,12]
[356369196,1742339549402,-500.0,0.0003863,12]
[356369197,1742339549411,-500.0,0.0003863,12]
[356369198,1742339549420,-319.17402965,0.0003863,12]
[356369199,1742339549430,-1293.1,0.0003863,12]
[356369200,1742339549439,-554.73,0.0003863,12]
[356369201,1742339549449,-500.0,0.0003863,12]
[356369202,1742339549458,-500.0,0.0003863,12]
[356369203,1742339549467,-887.4,0.0003863,12]
[356369204,1742339549477,-933.35,0.0003863,12]
[356369205,1742339549487,-645.27,0.0003863,12]
[356369206,1742339549496,-1270.34,0.0003863,12]
[356369207,1742339549505,-635.6,0.0003863,12]
[356369208,1742339549514,-546.63,0.0003863,12]
[356369209,1742339549523,-500.0,0.0003863,12]
[356369210,1742339549533,-500.0,0.0003863,12]
[356369211,1742339549543,-1007.61,0.0003863,12]
[356369212,1742339549552,-616.02,0.0003863,12]
[356369213,1742339549562,-686.76,0.0003863,12]
[356369214,1742339549571,-500.0,0.0003863,12]
[356369215,1742339549580,-500.0,0.0003863,12]
[356369216,1742339549589,-500.0,0.0003863,12]
[356369217,1742339549599,-531.32,0.0003863,12]
[356369218,1742339549608,-500.0,0.0003863,12]
[356369219,1742339549617,-601.48,0.0003863,12]
[356369220,1742339549626,-567.63,0.0003863,12]
[356369221,1742339549636,-963.46,0.0003863,12]
[356369222,1742339549645,-500.0,0.0003863,12]
[356369223,1742339549655,-500.0,0.0003863,12]
[356369224,1742339549664,-815.63,0.0003863,12]
[356369225,1742339549674,-500.0,0.0003863,12]
[356369226,1742339549684,-500.0,0.0003863,12]
[356369227,1742339549693,-500.0,0.0003863,12]
[356369228,1742339549703,-180.97054221,0.0003863,12]
[356369229,1742339549712,-500.0,0.0003863,12]
[356369230,1742339549722,-500.0,0.0003863,12]
[356369231,1742339549731,-500.37,0.0003863,12]
[356369232,1742339549741,-546.76,0.0003863,12]
[356369233,1742339549750,-500.0,0.0003863,12]
[356369234,1742339549760,-500.0,0.0003863,12]
[356369235,1742339549769,-599.5,0.0003863,12]
[356369236,1742339549778,-729.58,0.0003863,12]
[356369237,1742339549788,-922.39,0.0003863,12]
[356369238,1742339549800,-500.0,0.0003863,12]
[356369239,1742339549809,-1163.14,0.0003863,12]
[356369240,1742339549819,-875.92,0.0003863,30]
[356369241,1742339549829,-419.90689923,0.0003863,12]
[356369242,1742339549839,-750.87,0.0003863,12]
[356369243,1742339549848,-1410.05,0.0003863,12]
[356369244,1742339549858,-510.0,0.0003863,12]
[356369245,1742339549868,-541.9,0.0003863,12]
[356369246,1742339549878,-2100.21,0.0003863,12]
[356369247,1742339549888,-500.0,0.0003863,12]
[356369248,1742339549897,-819.72,0.0003863,12]
[356369249,1742339549907,-453.40466119,0.0003863,12]
[356369250,1742339549917,-868.85,0.0003863,12]
[356369251,1742339549927,-500.0,0.0003863,12]
[356369252,1742339549938,-832.99,0.0003863,12]
[356369253,1742339549947,-500.0,0.0003863,12]
[356369254,1742339549957,-500.0,0.0003863,12]
[356369255,1742339549967,-1487.67,0.0003863,12]
[356369256,1742339549976,-1565.380344,0.0003863,12]
[356369257,1742339549986,-151.731954,0.0003863,12]
[356369258,1742339549995,-500.0,0.0003863,12]
[356369259,1742339550004,-728.98,0.0003863,12]
[356369260,1742339550014,-156.823057,0.0003863,12]
[356369261,1742339550024,-500.0,0.0003863,12]
[356369262,1742339550034,-915.45,0.0003863,12]
[356369263,1742339550044,-500.0,0.0003863,12]
[356369264,1742339550054,-523.14,0.0003863,12]
[356369265,1742339550063,-500.0,0.0003863,12]
[356369266,1742339550073,-500.0,0.0003863,12]
[356369267,1742339550083,-415.53198,0.0003863,12]
[356369268,1742339550093,-500.0,0.0003863,12]
[356369269,1742339550103,-500.0,0.0003863,12]
[356369270,1742339550112,-500.0,0.0003863,12]
[356369271,1742339550122,-571.54,0.0003863,12]
[356369272,1742339550132,-547.0,0.0003863,12]
[356369273,1742339550142,-500.0,0.0003863,12]
[356369274,1742339550152,-1579.021524,0.0003863,12]
[356369275,1742339550162,-540.14,0.0003863,12]
[356369276,1742339550172,-500.0,0.0003863,12]
[356369277,1742339550183,-507.06,0.0003863,12]
[356369278,1742339550192,-500.0,0.0003863,12]
[356369279,1742339550202,-500.0,0.0003863,12]
[356369280,1742339550213,-1406.95,0.0003863,12]
[356369281,1742339550224,-1265.92,0.0003863,12]
[356369282,1742339550236,-583.92,0.0003863,12]
[356369283,1742339550247,-500.0,0.0003863,12]
[356369284,1742339550257,-819.59,0.0003863,12]
[356369285,1742339550266,-500.0,0.0003863,12]
[356369286,1742339550275,-500.0,0.0003863,12]
[356369287,1742339550285,-1112.86,0.0003863,12]
[356369288,1742339550294,-500.0,0.0003863,12]
[356369289,1742339550304,-849.05,0.0003863,12]
[356369290,1742339550314,-610.12,0.0003863,12]
[356369291,1742339550323,-500.0,0.0003863,12]
[356369292,1742339550332,-500.0,0.0003863,12]
[356369293,1742339550342,-966.8,0.0003863,12]
[356369294,1742339550352,-562.17,0.0003863,12]
[356369295,1742339550362,-500.0,0.0003863,12]
[356369296,1742339550372,-500.0,0.0003863,12]
[356369297,1742339550382,-500.0,0.0003863,12]
[356369298,1742339550391,-500.0,0.0003863,12]
[356369299,1742339550401,-500.0,0.0003863,12]
[356369300,1742339550411,-500.0,0.0003863,12]
[356369301,1742339550421,-565.83,0.0003863,12]
[356369302,1742339550431,-897.12,0.0003863,12]
[356369303,1742339550442,-500.0,0.0003863,12]
[356369304,1742339550451,-500.0,0.0003863,12]
[356369305,1742339550461,-588.72216632,0.0003863,12]
[356369306,1742339550471,-500.0,0.0003863,12]
[356369307,1742339550481,-588.08,0.0003863,12]
[356369308,1742339550491,-500.0,0.0003863,12]
[356369309,1742339550501,-539.17,0.0003863,12]
[356369310,1742339550510,-500.0,0.0003863,12]
[356369311,1742339550520,-500.0,0.0003863,12]
[356369312,1742339550530,-2686.86,0.0003863,12]
[356369313,1742339550539,-956.37,0.0003863,12]
[356369314,1742339550549,-500.0,0.0003863,12]
[356369315,1742339550558,-1521.69,0.0003863,7]
[356369316,1742339550568,-586.066474,0.0003863,12]
[356369317,1742339550578,-914.58,0.0003863,12]
[356369318,1742339550587,-500.0,0.0003863,12]
[356369319,1742339550597,-537.65,0.0003863,12]
[356369320,1742339550606,-1313.1,0.0003863,12]
[356369321,1742339550617,-500.0,0.0003863,12]
[356369322,1742339550626,-894.12,0.0003863,12]
[356369323,1742339550637,-523.64,0.0003863,12]
[356369324,1742339550647,-500.0,0.0003863,12]
[356369325,1742339550656,-500.0,0.0003863,12]
[356369326,1742339550666,-523.91,0.0003863,12]
[356369327,1742339550675,-500.0,0.0003863,12]
[356369328,1742339550686,-500.0,0.0003863,12]
[356369329,1742339550696,-845.67,0.0003863,12]
[356369330,1742339550706,-500.0,0.0003863,12]
[356369331,1742339550716,-1156.08,0.0003863,12]
[356369332,1742339550728,-500.0,0.0003863,12]
[356369333,1742339550738,-510.37,0.0003863,12]
[356369334,1742339550748,-655.83,0.0003863,12]
[356369335,1742339550758,-1175.67,0.0003863,12]
[356369336,1742339550768,-675.44,0.0003863,12]
[356369337,1742339550777,-584.29,0.0003863,12]
[356369338,1742339550787,-500.0,0.0003863,12]
[356369339,1742339550802,-535.37,0.0003863,12]
[356369340,1742339550812,-1360.65,0.0003863,12]
[356369341,1742339550822,-940.73,0.0003863,12]
[356369342,1742339550833,-638.9671074,0.0003863,12]
[356369343,1742339550843,-500.0,0.0003863,12]
[356369344,1742339550853,-661.64,0.0003863,12]
[356369345,1742339550863,-628.6,0.0003863,12]
[356369346,1742339550874,-872.38,0.0003863,12]
[356369347,1742339550884,-671.95,0.0003863,12]
[356369348,1742339550894,-589.35,0.0003863,12]
[356369349,1742339550904,-500.0,0.0003863,12]
[356369350,1742339550914,-509.39806545,0.0003863,12]
[356369351,1742339550923,-500.0,0.0003863,12]
[356369352,1742339550934,-500.0,0.0003863,12]
[356369353,1742339550944,-2111.58,0.0003863,12]
[356369354,1742339550954,-1118.44,0.0003863,12]
[356369355,1742339550964,-432.49417999,0.0003863,12]
[356369356,1742339550973,-553.37836869,0.0003863,12]
[356369357,1742339550983,-952.51,0.0003863,12]
[356369358,1742339550993,-500.0,0.0003863,12]
[356369359,1742339551003,-1141.77,0.0003863,12]
[356369360,1742339551013,-509.9,0.0003863,12]
[356369361,1742339551023,-786.29,0.0003863,12]
[356369362,1742339551032,-500.0,0.0003863,12]
[356369363,1742339551041,-885.74,0.0003863,12]
[356369364,1742339551051,-500.0,0.0003863,12]
[356369365,1742339551060,-853.02,0.0003863,12]
[356369366,1742339551071,-500.0,0.0003863,12]
[356369367,1742339551081,-500.0,0.0003863,12]
[356369368,1742339551091,-930.16,0.0003863,12]
[356369369,1742339551100,-534.99,0.0003863,12]
[356369370,1742339551109,-500.0,0.0003863,12]
[356369371,1742339551119,-554.71,0.0003863,12]
[356369372,1742339551129,-1096.04,0.0003863,12]
[356369373,1742339551139,-500.0,0.0003863,12]
[356369374,1742339551149,-669.21,0.0003863,12]
[356369375,1742339551158,-2116.57,0.0003863,12]
[356369376,1742339551167,-500.0,0.0003863,12]
[356369377,1742339551177,-500.0,0.0003863,12]
[356369378,1742339551187,-824.59,0.0003863,12]
[356369379,1742339551196,-1273.18,0.0003863,12]
[356369380,1742339551206,-662.07,0.0003863,12]
[356369381,1742339551216,-1001.65,0.0003863,12]
[356369382,1742339551226,-865.19,0.0003863,12]
[356369383,1742339551235,-500.0,0.0003863,12]
[356369384,1742339551245,-569.57,0.0003863,12]
[356369385,1742339551254,-850.25,0.0003863,12]
[356369386,1742339551263,-2025.31,0.0003863,12]
[356369387,1742339551274,-500.0,0.0003863,12]
[356369388,1742339551283,-1125.43,0.0003863,12]
[356369389,1742339551292,-1034.97,0.0003863,12]
[356369390,1742339551302,-736.13,0.0003863,12]
[356369391,1742339551312,-500.0,0.0003863,12]
[356369392,1742339551322,-500.0,0.0003863,12]
[356369393,1742339551332,-500.0,0.0003863,12]
[356369394,1742339551342,-705.75,0.0003863,12]
[356369395,1742339551352,-587.39810804,0.0003863,12]
[356369396,1742339551362,-1168.81,0.0003863,12]